fUST/lending_fUST_20241112
["ID","MTS","AMOUNT","RATE_DAILY","PERIOD"]
[341994003,1731348645496,-500.0,0.00021917,2]
[341994004,1731348645505,-500.0,0.00021917,2]
[341994005,1731348645514,-14044.39,0.00021917,2]
[341994006,1731348645523,-500.0,0.00021917,2]
[341994007,1731348645532,-500.0,0.00021917,2]
[341994008,1731348645541,-285.58,0.00021917,2]
[341994009,1731348645551,-500.0,0.00021917,2]
[341994010,1731348645560,-547.66,0.00021917,2]
[341994011,1731348645570,-473.36297493,0.00021917,2]
[341994012,1731348645579,-2806.82,0.00021917,2]
[341994013,1731348645589,-500.0,0.00021917,2]
[341994014,1731348645601,-500.0,0.00021917,2]
[341994015,1731348645610,-424.5,0.00021917,2]
[341994016,1731348645620,-500.0,0.00021917,2]
[341994017,1731348645630,-503.94,0.00021917,2]
[341994018,1731348645640,-151.0,0.00021918,2]
[341994019,1731348645650,-151.0,0.00021918,2]
[341994020,1731348645659,-151.0,0.00021918,2]
[341994021,1731348645670,-151.0,0.00021918,2]
[341994022,1731348645680,-151.0,0.00021918,2]
[341994023,1731348645689,-151.0,0.00021918,2]
[341994024,1731348645700,-166.666666,0.00021918,2]
[341994025,1731348645709,-172.49178045,0.00021918,2]
[341994026,1731348645718,-501.10527432,0.00021973,2]
[341994027,1731348645727,-501.85984564,0.00021973,2]
[341994028,1731348645736,-193.8793269,0.00021973,2]
[341994029,1731348645746,-500.0,0.00021973,2]
[341994030,1731348645756,-500.0,0.00021973,2]
[341994031,1731348645766,-501.55656033,0.00021973,2]
[341994032,1731348645776,-500.0,0.00021973,2]
[341994033,1731348645786,-628.30696876,0.00021973,2]
[341994034,1731348645796,-162.59999248,0.00021973,2]
[341994035,1731348645805,-500.0,0.00021973,2]
[341994036,1731348645814,-500.0,0.00021973,2]
[341994037,1731348645824,-500.0,0.00021973,2]
[341994038,1731348645833,-500.0,0.00021973,2]
[341994039,1731348645843,-500.0,0.00021973,2]
[341994040,1731348645852,-500.0,0.00021973,2]
[341994041,1731348645862,-500.0,0.00021973,2]
[341994042,1731348645871,-500.0,0.00021973,2]
[341994044,1731348645880,-502.03067635,0.00021973,2]
[341994045,1731348645890,-151.0,0.00021973,7]
[341994046,1731348645899,-151.0,0.00021973,7]
[341994047,1731348645909,-151.0,0.00021973,7]
[341994048,1731348645918,-220.586584,0.00021973,7]
[341994049,1731348645927,-151.0,0.00021973,7]
[341994051,1731348645937,-151.0,0.00021973,7]
[341994052,1731348645948,-151.0,0.00021973,7]
[341994053,1731348645956,-444.100134,0.00021973,7]
[341994054,1731348645965,-444.100134,0.00021973,7]
[341994055,1731348645974,-475.980756,0.00021973,7]
[341994057,1731348645984,-475.980756,0.00021973,7]
[341994058,1731348645993,-370.915681,0.00021973,7]
[341994059,1731348646002,-370.915681,0.00021973,7]
[341994060,1731348646012,-1455.305513,0.00021973,7]
[341994061,1731348646022,-1455.305513,0.00021973,7]
[341994062,1731348646032,-2294.138501,0.00021973,7]
[341994063,1731348646041,-2294.138501,0.00021973,7]
[341994064,1731348646051,-490.46456046,0.00022,5]
[341994065,1731348646060,-160.317947,0.00022,7]
[341994066,1731348646070,-184.739027,0.00022,7]
[341994067,1731348646079,-151.0,0.00022,7]
[341994068,1731348646088,-387.385648,0.00022,7]
[341994069,1731348646098,-151.0,0.00022,7]
[341994070,1731348646107,-387.385648,0.00022,7]
[341994072,1731348646117,-151.0,0.00022,7]
[341994075,1731348646126,-151.0,0.00022,7]
[341994076,1731348646135,-151.0,0.00022,7]
[341994079,1731348646144,-161.271816,0.00022,7]
[341994081,1731348646154,-151.0,0.00022,7]
[341994082,1731348646165,-151.0,0.00022,7]
[341994083,1731348646175,-562.660634,0.00022,7]
[341994084,1731348646184,-562.660634,0.00022,7]
[341994085,1731348646195,-482.0,0.00022,2]
[341994086,1731348646204,-444.100134,0.00022,7]
[341994087,1731348646214,-444.100134,0.00022,7]
[341994088,1731348646223,-1131.51436,0.00022,7]
[341994089,1731348646232,-1131.51436,0.00022,7]
[341994090,1731348646241,-475.980756,0.00022,7]
[341994091,1731348646251,-475.980756,0.00022,7]
[341994092,1731348646259,-709.991224,0.00022,7]
[341994093,1731348646268,-370.915681,0.00022,7]
[341994094,1731348646277,-370.915681,0.00022,7]
[341994095,1731348646286,-1455.305513,0.00022,7]
[341994096,1731348646295,-1455.305513,0.00022,7]
[341994097,1731348646304,-2294.138501,0.00022,7]
[341994098,1731348646314,-2294.138501,0.00022,7]
[341994099,1731348646325,-179.250821,0.00022,2]
[341994100,1731348646336,-198.0,0.00022,2]
[341994101,1731348646345,-432.7938648,0.0002201,16]
[341994102,1731348646355,-207.222374,0.00022072,2]
[341994103,1731348646365,-615.97358228,0.00022173,2]
[341994104,1731348646375,-500.0,0.00022173,2]
[341994105,1731348646385,-500.0,0.00022173,2]
[341994106,1731348646394,-444.100134,0.0002219,7]
[341994107,1731348646403,-444.100126,0.0002219,7]
[341994108,1731348646412,-709.991224,0.0002219,7]
[341994109,1731348646421,-500.0,0.00022191,2]
[341994110,1731348646431,-151.0,0.00022191,7]
[341994111,1731348646442,-151.0,0.00022191,7]
[341994112,1731348646452,-151.0,0.00022191,7]
[341994114,1731348646566,-151.0,0.00022191,7]
[341994115,1731348646576,-387.385648,0.00022191,7]
[341994116,1731348646586,-387.385648,0.00022191,7]
[341994118,1731348646600,-184.443555,0.00022191,7]
[341994119,1731348646610,-387.385648,0.00022191,7]
[341994120,1731348646619,-387.385648,0.00022191,7]
[341994121,1731348646629,-387.385648,0.00022191,7]
[341994122,1731348646640,-387.385648,0.00022191,7]
[341994123,1731348646649,-387.385648,0.00022191,7]
[341994124,1731348646659,-387.385648,0.00022191,7]
[341994125,1731348646669,-151.0,0.00022191,7]
[341994126,1731348646679,-151.0,0.00022191,7]
[341994127,1731348646689,-151.0,0.00022191,7]
[341994128,1731348646700,-151.0,0.00022191,7]
[341994129,1731348646709,-276.711737,0.00022191,7]
[341994130,1731348646719,-500.0,0.00022191,2]
[341994131,1731348646728,-500.0,0.00022191,2]
[341994132,1731348646737,-151.0,0.00022191,7]
[341994133,1731348646746,-151.0,0.00022191,7]
[341994134,1731348646755,-151.0,0.00022191,7]
[341994135,1731348646774,-151.0,0.00022191,7]
[341994136,1731348646787,-151.0,0.00022191,7]
[341994137,1731348646799,-151.0,0.00022191,7]
[341994138,1731348646809,-151.0,0.00022191,7]
[341994139,1731348646819,-160.613028,0.00022191,7]
[341994140,1731348646829,-562.660634,0.00022191,7]
[341994141,1731348646839,-562.660634,0.00022191,7]
[341994142,1731348646849,-562.660634,0.00022191,7]
[341994143,1731348646858,-562.660634,0.00022191,7]
[341994144,1731348646869,-562.660634,0.00022191,7]
[341994145,1731348646878,-562.660634,0.00022191,7]
[341994146,1731348646890,-562.660634,0.00022191,7]
[341994147,1731348646900,-562.660634,0.00022191,7]
[341994148,1731348646910,-500.0,0.00022191,2]
[341994149,1731348646919,-500.0,0.00022191,2]
[341994150,1731348646929,-367.97879242,0.00022191,2]
[341994151,1731348646938,-500.0,0.00022191,2]
[341994152,1731348646950,-500.0,0.00022191,2]
[341994153,1731348646959,-500.0,0.00022191,2]
[341994154,1731348646969,-1500.64,0.00022191,2]
[341994155,1731348646979,-500.0,0.00022191,2]
[341994156,1731348646989,-500.0,0.00022191,2]
[341994157,1731348646998,-500.0,0.00022191,2]
[341994158,1731348647008,-261.43140854,0.00022191,2]
[341994159,1731348647018,-500.0,0.00022191,2]
[341994160,1731348647028,-500.0,0.00022191,2]
[341994161,1731348647038,-500.0,0.00022191,2]
[341994162,1731348647048,-500.0,0.00022191,2]
[341994163,1731348647058,-626.03,0.00022191,2]
[341994164,1731348647068,-500.0,0.00022191,2]
[341994165,1731348647077,-800.23,0.00022191,2]
[341994166,1731348647087,-1131.51436,0.00022191,7]
[341994167,1731348647096,-1131.51436,0.00022191,7]
[341994168,1731348647106,-1131.51436,0.00022191,7]
[341994169,1731348647115,-1131.51436,0.00022191,7]
[341994170,1731348647125,-500.0,0.00022191,2]
[341994171,1731348647134,-1131.51436,0.00022191,7]
[341994172,1731348647144,-500.0,0.00022191,2]
[341994173,1731348647153,-1131.51436,0.00022191,7]
[341994174,1731348647162,-1131.51436,0.00022191,7]
[341994175,1731348647172,-1131.51436,0.00022191,7]
[341994176,1731348647181,-1630.31,0.00022191,2]
[341994177,1731348647190,-500.0,0.00022191,2]
[341994178,1731348647201,-200.0,0.00022191,2]
[341994179,1731348647210,-500.0,0.00022191,2]
[341994180,1731348647219,-500.0,0.00022191,2]
[341994181,1731348647228,-475.980756,0.00022191,7]
[341994182,1731348647238,-475.980756,0.00022191,7]
[341994183,1731348647247,-475.980756,0.00022191,7]
[341994184,1731348647257,-475.980756,0.00022191,7]
[341994185,1731348647267,-580.52103166,0.00022191,2]
[341994186,1731348647276,-475.980756,0.00022191,7]
[341994187,1731348647286,-475.980756,0.00022191,7]
[341994188,1731348647296,-475.980756,0.00022191,7]
[341994189,1731348647305,-475.980753,0.00022191,7]
[341994190,1731348647315,-500.0,0.00022191,2]
[341994191,1731348647324,-709.991228,0.00022191,7]
[341994192,1731348647334,-1368.31,0.00022191,2]
[341994193,1731348647343,-500.0,0.00022191,2]
[341994194,1731348647353,-370.915681,0.00022191,7]
[341994195,1731348647362,-370.915681,0.00022191,7]
[341994196,1731348647372,-380.86293862,0.00022191,2]
[341994197,1731348647381,-370.915681,0.00022191,7]
[341994198,1731348647391,-370.915675,0.00022191,7]
[341994199,1731348647401,-500.0,0.00022191,2]
[341994200,1731348647411,-500.0,0.00022191,2]
[341994201,1731348647419,-500.0,0.00022191,2]
[341994202,1731348647428,-520.98,0.00022191,2]
[341994203,1731348647438,-543.42594254,0.00022191,2]
[341994204,1731348647448,-500.0,0.00022191,2]
[341994205,1731348647458,-500.0,0.00022191,2]
[341994206,1731348647466,-1455.305513,0.00022191,7]
[341994207,1731348647476,-1455.305513,0.00022191,7]
[341994208,1731348647485,-1455.305513,0.00022191,7]
[341994209,1731348647495,-1455.305513,0.00022191,7]
[341994210,1731348647504,-500.0,0.00022191,2]
[341994211,1731348647513,-1455.305513,0.00022191,7]
[341994212,1731348647522,-1455.305513,0.00022191,7]
[341994213,1731348647531,-1455.305513,0.00022191,7]
[341994214,1731348647540,-1455.305506,0.00022191,7]
[341994215,1731348647550,-500.0,0.00022191,2]
[341994216,1731348647560,-500.0,0.00022191,2]
[341994217,1731348647570,-2294.138501,0.00022191,7]
[341994218,1731348647579,-2294.138501,0.00022191,7]
[341994219,1731348647588,-2294.138501,0.00022191,7]
[341994220,1731348647602,-2294.13850396,0.00022191,7]
[341994221,1731348647611,-500.0,0.00022191,2]
[341994222,1731348647620,-500.0,0.00022191,2]
[341994223,1731348647629,-500.0,0.00022191,2]
[341994224,1731348647639,-500.0,0.00022191,2]
[341994225,1731348647648,-500.0,0.00022191,2]
[341994226,1731348647657,-500.0,0.00022191,2]
[341994227,1731348647668,-500.0,0.00022191,2]
[341994228,1731348647678,-905.22,0.00022191,2]
[341994229,1731348647687,-500.0,0.00022191,2]
[341994230,1731348647698,-500.0,0.00022191,2]
[341994231,1731348647708,-500.0,0.00022191,2]
[341994232,1731348647716,-371.05047279,0.00022191,2]
[341994233,1731348647725,-500.0,0.00022191,2]
[341994234,1731348647734,-500.0,0.00022191,2]
[341994235,1731348647744,-500.0,0.00022191,2]
[341994236,1731348647753,-500.0,0.00022191,2]
[341994237,1731348647763,-500.0,0.00022191,2]
[341994238,1731348647772,-284.13124583,0.00022191,2]
[341994239,1731348647782,-500.0,0.00022191,2]
[341994240,1731348647791,-1318.31,0.00022191,2]
[341994241,1731348647801,-340.35,0.00022191,2]
[341994242,1731348647812,-989.08,0.00022191,2]
[341994243,1731348647821,-500.0,0.00022191,2]
[341994244,1731348647830,-354.38571748,0.00022191,2]
[341994245,1731348647840,-500.0,0.00022191,2]
[341994246,1731348647849,-661.21,0.00022191,2]
[341994247,1731348647859,-500.0,0.00022191,2]
[341994248,1731348647868,-500.0,0.00022191,2]
[341994249,1731348647877,-487.39265272,0.00022191,2]
[341994250,1731348648031,-12.60734728,0.00022191,2]
[341994251,1731348648040,-322.43915176,0.00022191,2]
[341994252,1731348648388,-1544.828896,0.00021917,2]
[341994253,1731348648397,-1544.828896,0.00021917,2]
[341994254,1731348648406,-1544.828896,0.00021917,2]
[341994255,1731348648415,-500.0,0.00021917,2]
[341994256,1731348648424,-336.85303176,0.00021917,2]
[341994257,1731348648645,-2862.46,0.00021717,2]
[341994258,1731348648666,-1049.18575592,0.00021717,2]
[341994259,1731348648676,-500.0,0.00021816,2]
[341994260,1731348648685,-322.95633657,0.00021816,2]
[341994261,1731348648695,-234.35861432,0.00021816,2]
[341994262,1731348648707,-1207.97586424,0.00021917,2]
[341994263,1731348648716,-1544.828896,0.00021917,2]
[341994264,1731348648724,-500.0,0.00021917,2]
[341994265,1731348648850,-1544.828896,0.00021917,2]
[341994266,1731348648861,-500.0,0.00021917,2]
[341994267,1731348648870,-1544.828896,0.00021917,2]
[341994268,1731348648880,-1544.828896,0.00021917,2]
[341994269,1731348648889,-1544.828896,0.00021917,2]
[341994270,1731348648898,-1544.828896,0.00021917,2]
[341994271,1731348648908,-1544.828896,0.00021917,2]
[341994272,1731348648917,-500.0,0.00021917,2]
[341994273,1731348648926,-500.0,0.00021917,2]
[341994274,1731348648935,-1544.828896,0.00021917,2]
[341994275,1731348648944,-1024.13084824,0.00022191,2]
[341994276,1731348648956,-500.0,0.00022191,2]
[341994277,1731348648965,-500.0,0.00022191,2]
[341994278,1731348648975,-523.33,0.00022191,2]
[341994279,1731348648984,-588.39811047,0.00022191,2]
[341994280,1731348648993,-875.48,0.00022191,2]
[341994281,1731348649003,-500.0,0.00022191,2]
[341994282,1731348649011,-500.0,0.00022191,2]
[341994283,1731348649022,-500.0,0.00022191,2]
[341994284,1731348649031,-3172.43,0.00022191,2]
[341994285,1731348649041,-500.0,0.00022191,2]
[341994286,1731348649050,-500.0,0.00022191,2]
[341994287,1731348649059,-500.0,0.00022191,2]
[341994288,1731348649068,-500.0,0.00022191,2]
[341994289,1731348649077,-430.80116196,0.00022191,2]
[341994290,1731348649086,-1376.81,0.00022191,2]
[341994291,1731348649096,-500.0,0.00022191,2]
[341994292,1731348649106,-955.02,0.00022191,2]
[341994293,1731348649115,-500.0,0.00022191,2]
[341994294,1731348649124,-500.0,0.00022191,2]
[341994295,1731348649137,-339.50204448,0.00022191,2]
[341994296,1731348649152,-191.67,0.00022191,2]
[341994297,1731348649166,-348.23077697,0.00022191,2]
[341994298,1731348649176,-500.0,0.00022191,2]
[341994299,1731348649186,-500.0,0.00022191,2]
[341994300,1731348649195,-500.0,0.00022191,2]
[341994301,1731348649206,-3769.76,0.00022191,2]
[341994302,1731348649215,-1204.95,0.00022191,2]
[341994303,1731348649224,-500.0,0.00022191,2]
[341994304,1731348649233,-3180.28,0.00022191,2]
[341994305,1731348649242,-500.0,0.00022191,2]
[341994306,1731348649251,-1062.3,0.00022191,2]
[341994307,1731348649260,-500.0,0.00022191,2]
[341994308,1731348649269,-361.63428686,0.00022191,2]
[341994309,1731348649278,-500.0,0.00022191,2]
[341994310,1731348649287,-500.0,0.00022191,2]
[341994311,1731348649296,-500.0,0.00022191,2]
[341994312,1731348649305,-567.66154074,0.00022191,2]
[341994313,1731348649315,-500.0,0.00022191,2]
[341994314,1731348649324,-500.0,0.00022191,2]
[341994315,1731348649333,-500.0,0.00022191,2]
[341994316,1731348649342,-500.0,0.00022191,2]
[341994317,1731348649351,-545.89,0.00022191,2]
[341994318,1731348649361,-932.03,0.00022191,2]
[341994319,1731348649370,-500.0,0.00022191,2]
[341994320,1731348649378,-500.0,0.00022191,2]
[341994321,1731348649387,-500.0,0.00022191,2]
[341994322,1731348649397,-621.63,0.00022191,2]
[341994323,1731348649407,-500.0,0.00022191,2]
[341994324,1731348649416,-500.0,0.00022191,2]
[341994325,1731348649425,-500.0,0.00022191,2]
[341994326,1731348649434,-14044.39,0.00022191,2]
[341994327,1731348649443,-500.0,0.00022191,2]
[341994328,1731348649454,-500.0,0.00022191,2]
[341994329,1731348649463,-547.66,0.00022191,2]
[341994330,1731348649473,-2806.82,0.00022191,2]
[341994331,1731348649481,-472.37134017,0.00022191,2]
[341994332,1731348649491,-500.0,0.00022191,2]
[341994333,1731348649501,-503.94,0.00022191,2]
[341994334,1731348649511,-500.0,0.00022191,2]
[341994335,1731348649521,-609.85,0.00022191,2]
[341994336,1731348649530,-500.0,0.00022191,2]
[341994337,1731348649539,-166.666666,0.00022431,2]
[341994338,1731348649549,-151.0,0.00022464,7]
[341994339,1731348649559,-562.660634,0.00022464,7]
[341994340,1731348649568,-562.660625,0.00022464,7]
[341994341,1731348649578,-1131.51436,0.00022464,7]
[341994342,1731348649588,-1131.51435289,0.00022464,7]
[341994343,1731348649600,-387.385648,0.00022465,7]
[341994344,1731348649609,-387.385648,0.00022465,7]
[341994345,1731348649620,-387.385648,0.00022465,7]
[341994346,1731348649632,-387.385658,0.00022465,7]
[341994347,1731348649642,-151.0,0.00022465,7]
[341994348,1731348649651,-246.025901,0.00022465,7]
[341994349,1731348649660,-367.92400503,0.00022465,2]
[341994350,1731348649670,-500.0,0.00022465,2]
[341994351,1731348649679,-500.0,0.00022465,2]
[341994352,1731348649689,-500.0,0.00022465,2]
[341994353,1731348649700,-500.0,0.00022465,2]
[341994354,1731348649709,-500.0,0.00022465,2]
[341994355,1731348649718,-505.70666983,0.00022465,2]
[341994356,1731348649728,-1500.64,0.00022465,2]
[341994357,1731348649737,-500.0,0.00022465,2]
[341994358,1731348649746,-500.0,0.00022465,2]
[341994359,1731348649755,-500.0,0.00022465,2]
[341994360,1731348649765,-307.84,0.00022465,2]
[341994361,1731348649774,-394.97,0.00022465,2]
[341994362,1731348649783,-500.0,0.00022465,2]
[341994363,1731348649793,-500.0,0.00022465,2]
[341994364,1731348649802,-626.03,0.00022465,2]
[341994365,1731348649811,-500.0,0.00022465,2]
[341994366,1731348649820,-800.23,0.00022465,2]
[341994367,1731348649829,-500.0,0.00022465,2]
[341994368,1731348649838,-500.0,0.00022465,2]
[341994369,1731348649847,-1630.31,0.00022465,2]
[341994370,1731348649856,-501.6736776,0.00022465,2]
[341994371,1731348649865,-500.0,0.00022465,2]
[341994372,1731348649874,-500.0,0.00022465,2]
[341994373,1731348649883,-613.82,0.00022465,2]
[341994374,1731348649892,-1368.31,0.00022465,2]
[341994375,1731348649901,-500.0,0.00022465,2]
[341994376,1731348649910,-520.98,0.00022465,2]
[341994377,1731348649922,-500.0,0.00022465,2]
[341994378,1731348649936,-500.0,0.00022465,2]
[341994379,1731348649953,-484.44,0.00022465,2]
[341994380,1731348649970,-500.0,0.00022465,2]
[341994381,1731348649981,-500.0,0.00022465,2]
[341994382,1731348649994,-500.0,0.00022465,2]
[341994383,1731348650005,-500.0,0.00022465,2]
[341994384,1731348650018,-500.0,0.00022465,2]
[341994385,1731348650031,-905.22,0.00022465,2]
[341994386,1731348650043,-500.0,0.00022465,2]
[341994387,1731348650057,-500.0,0.00022465,2]
[341994388,1731348650070,-500.0,0.00022465,2]
[341994389,1731348650083,-331.19291069,0.00022465,2]
[341994390,1731348650095,-500.0,0.00022465,2]
[341994391,1731348650107,-432.77,0.00022465,2]
[341994392,1731348650122,-989.08,0.00022465,2]
[341994393,1731348650134,-163.24030194,0.00022465,2]
[341994394,1731348650146,-500.0,0.00022465,2]
[341994395,1731348650157,-1346.57,0.00022465,2]
[341994396,1731348650168,-500.0,0.00022465,2]
[341994397,1731348650179,-500.0,0.00022465,2]
[341994398,1731348650192,-875.48,0.00022465,2]
[341994399,1731348650209,-500.0,0.00022465,2]
[341994400,1731348650223,-500.0,0.00022465,2]
[341994401,1731348650236,-500.0,0.00022465,2]
[341994402,1731348650249,-500.0,0.00022465,2]
[341994403,1731348650263,-3172.43,0.00022465,2]
[341994404,1731348650276,-500.0,0.00022465,2]
[341994405,1731348650286,-176.22870477,0.00022465,2]
[341994406,1731348650300,-323.77129523,0.00022465,2]
[341994407,1731348650311,-500.58215346,0.00022465,2]
[341994408,1731348650324,-1376.81,0.00022465,2]
[341994409,1731348650337,-955.02,0.00022465,2]
[341994410,1731348650350,-500.0,0.00022465,2]
[341994411,1731348650360,-500.0,0.00022465,2]
[341994412,1731348650372,-500.0,0.00022465,2]
[341994413,1731348650383,-500.0,0.00022465,2]
[341994414,1731348650396,-2859.62803277,0.00022465,2]
[341994424,1731348828377,167.662955,0.00013973,2]
[341994425,1731348984974,250.6565005,0.00020731,2]
[341994426,1731349002249,1169.27083333,0.00020845,2]
[341994429,1731349106078,206.664332,0.00020716,2]
[341994430,1731349142666,942.113954,0.00020714,2]
[341994431,1731349149947,174.131307,0.0002044,2]
[341994447,1731349288983,196.9257,0.00020716,2]
[341994448,1731349313975,1169.27083333,0.00020845,2]
[341994449,1731349369094,839.0740564,0.00020714,2]
[341994452,1731349610990,167.662955,0.00013973,2]
[341994453,1731349625119,1169.27083333,0.00020845,2]
[341994456,1731349727293,1964.55701587,0.0002061,2]
[341994463,1731349789662,206.664332,0.00020646,2]
[341994494,1731349832620,-1169.27083333,0.00020846,2]
[341994495,1731349832630,-2433.07110466,0.00021,2]
[341994498,1731349832651,-2817.71520262,0.00021,2]
[341994502,1731349832684,-1085.98420897,0.00021,2]
[341994504,1731349832693,-509.62423927,0.000212,2]
[341994506,1731349832702,-1000.0,0.00021617,2]
[341994508,1731349832711,-300.0,0.00021705,2]
[341994510,1731349832720,-322.2,0.00021707,3]
[341994512,1731349832730,-161.1,0.00021707,3]
[341994514,1731349832739,-483.34,0.00021707,3]
[341994516,1731349832748,-300.0,0.00021715,2]
[341994518,1731349832757,-502.25156983,0.00021716,2]
[341994520,1731349832767,-318.57348803,0.00021716,2]
[341994522,1731349832778,-182.47918694,0.00021716,2]
[341994524,1731349832788,-128.26681306,0.00021716,2]
[341994552,1731349838846,-372.51335612,0.00021716,2]
[341994553,1731349838856,-447.70107236,0.00021716,2]
[341994554,1731349838876,-52.29892764,0.00021716,2]
[341994556,1731349838885,-627.96064305,0.00021716,2]
[341994558,1731349838895,-379.01204931,0.00021716,2]
[341994597,1731349844051,-120.98795069,0.00021716,2]
[341994598,1731349844061,-500.0,0.00021716,2]
[341994599,1731349844071,-430.38997379,0.00021716,2]
[341994600,1731349844080,-325.09898516,0.00021717,2]
[341994601,1731349844089,-25585.47758043,0.00021717,2]
[341994602,1731349844099,-2729.85240233,0.00021717,2]
[341994603,1731349844112,-1108.15526148,0.00021717,2]
[341994611,1731349892338,169.579517,0.00020482,2]
[341994612,1731349893722,150.27,0.00020769,2]
[341994614,1731349990504,192.0672335,0.0002073,2]
[341994615,1731350087618,2733.4975228,0.00020714,2]
[341994616,1731350093874,502.7181036,0.00020714,2]
[341994617,1731350100111,3000.0,0.00020714,2]
[341994618,1731350195956,23179.7749386,0.00020656,2]
[341994619,1731350246969,1169.27083333,0.00020845,2]
[341994620,1731350259180,416.4789899,0.0002063,2]
[341994621,1731350277460,167.662955,0.00013973,2]
[341994622,1731350321298,2726.1660702,0.0002063,2]
[341994623,1731350352063,1168.458372,0.00020645,2]
[341994624,1731350384623,175.516737,0.00020645,2]
[341994625,1731350384859,175.516737,0.00020659,2]
[341994626,1731350385067,175.516737,0.00020674,2]
[341994627,1731350385313,175.516737,0.00020689,2]
[341994628,1731350385606,175.516737,0.00020704,2]
[341994629,1731350385820,158.017,0.00020686,2]
[341994630,1731350385927,175.516737,0.00020718,2]
[341994631,1731350386206,175.516737,0.00020733,2]
[341994632,1731350386415,175.516737,0.00020748,2]
[341994633,1731350387042,192.7065,0.00020686,2]
[341994634,1731350399711,2195.2990899,0.0002081,2]
[341994635,1731350408355,3836.9452257,0.00020645,2]
[341994636,1731350426581,860.2637443,0.00020795,2]
[341994637,1731350447408,1247.0973923,0.00020781,2]
[341994638,1731350467455,150.541,0.0002562,60]
[341994639,1731350497027,500.1045475,0.00020745,2]
[341994640,1731350537407,250.0,0.00020614,2]
[341994643,1731350559028,1169.27083333,0.00020845,2]
[341994644,1731350607745,6734.253336,0.00020614,2]
[341994645,1731350614855,352.0170737,0.00020607,2]
[341994647,1731350629625,366.342094,0.00020607,2]
[341994649,1731350818617,166.886208,0.00020314,2]
[341994650,1731350870177,1169.27083333,0.00020845,2]
[341994651,1731350916467,50000.0,0.000208,2]
[341994653,1731350965950,297.5147912,0.00020586,2]
[341994721,1731351031974,-1169.27083333,0.00020845,2]
[341994722,1731351031986,-6734.253336,0.00021299,2]
[341994724,1731351031996,-230.29358704,0.00021473,2]
[341994725,1731351032005,-1000.0,0.00021517,2]
[341994726,1731351032015,-300.0,0.00021572,2]
[341994727,1731351032025,-300.0,0.00021572,2]
[341994728,1731351032036,-761.68398717,0.00021573,2]
[341994729,1731351032045,-249.91,0.00021607,3]
[341994730,1731351032054,-232.07,0.00021607,3]
[341994731,1731351032064,-696.24,0.00021607,3]
[341994732,1731351032073,-500.0,0.00021616,2]
[341994733,1731351032083,-270.54975105,0.00021616,2]
[341994734,1731351032092,-500.0,0.00021616,2]
[341994735,1731351032102,-500.0,0.00021616,2]
[341994736,1731351032112,-500.0,0.00021616,2]
[341994737,1731351032121,-500.0,0.00021616,2]
[341994738,1731351032130,-500.0,0.00021616,2]
[341994739,1731351032139,-500.0,0.00021616,2]
[341994741,1731351032149,-152.39727109,0.00021616,2]
[341994742,1731351032158,-500.0,0.00021616,2]
[341994743,1731351032167,-184.66333164,0.00021616,2]
[341994744,1731351032177,-500.0,0.00021616,2]